Cogmind - Beta 16.1 @@@ ROGUE MODE // 2026.02.23 @ 22:51:39 Player: Anting Result: Self-destructed Performance ------------- Evolutions (4) 2000 Regions Visited (15) 3000 Robots Destroyed (129) 645 Value Destroyed (3052) 3052 Prototype IDs (28) 560 Alien Tech Used (0) 0 Bonus (316) 316 TOTAL SCORE: 9573 Bonus ------- High Alert Combat Kills 59 Follower Combat Kills 272 Friendly Fire -15 Cogmind --------- Core Integrity 606/850 Matter 166/300 Energy 232/295 System Corruption 11% Temperature Cool (96) Movement Flying (94) Ox1 Location -6/Factory Parts ------- > --- POWER (1) -------- Fusion Reactor > --- PROPULSION (5) --- Cooled VTOL Module Cooled VTOL Module Cooled VTOL Module > --- UTILITY (7) ------ Medium Storage Unit Gravity Neutralizer Advanced Sensor Array Improved Signal Interpreter Makeshift Hacking Suite Makeshift Hacking Suite Makeshift System Shield > --- WEAPON (2) ------- Cooled Plasma Cannon > --- INVENTORY (10) --- Light Neutrino Core Improved Medium Armor Plating Makeshift Hacking Suite Improved Trap Extractor (6/6 Blade) Improved Trap Extractor (0/6) Hypervelocity Gauss Rifle Improved Datajack Heavy Pick GAL Module Peak State ------------ > --- POWER ------------ Fusion Reactor > --- PROPULSION ------- Cooled VTOL Module Cooled VTOL Module Cooled VTOL Module Cooled VTOL Module Cooled VTOL Module > --- UTILITY ---------- Medium Storage Unit Gravity Neutralizer Advanced Sensor Array Improved Signal Interpreter Makeshift Hacking Suite Makeshift Hacking Suite Makeshift System Shield > --- WEAPON ----------- Cooled Plasma Cannon Heavy Pick > --- INVENTORY -------- Light Neutrino Core Improved Medium Armor Plating Makeshift Hacking Suite Improved Trap Extractor Improved Trap Extractor Hypervelocity Gauss Rifle Scatter Rocket Array Improved Datajack GAL Module [Rating: 74] Favorites ----------- Power Ion Engine Engine Ion Engine Power Core Light Nuclear Core Reactor Fusion Reactor Propulsion Cooled VTOL Module Treads Medium Treads Leg Aluminum Leg Hover Unit Improved Airjet Flight Unit Cooled VTOL Module Utility Hacking Suite Device Seismic Detector Storage Medium Storage Unit Processor Improved Signal Interpreter Hackware Hacking Suite Protection Improved Medium Armor Plating Weapon Assault Rifle Energy Gun Spread Laser Energy Cannon Advanced Beam Cannon Ballistic Gun Assault Rifle Ballistic Cannon Bore Cannon Launcher Scatter Rocket Array Slashing Weapon Scythe Piercing Weapon Heavy Pick Special Melee Weapon Improved Datajack Build | -11 -10 -10 -10 -9 -8 -7 -7 -7 -7 -7 -7 -6 -6 -6 -6 ------- Run | Yrd Mat Min Exi Min Mat Fac Was Fac Low Low Zio Pro Fac Was Fac Slots Evolved 8 | . . . . . 4 2 . . . . . . 2 . . Power . | . . . . . . . . . . . . . . . . Propulsion 3 | . . . . . 2 . . . . . . . 1 . . Utility 5 | . . . . . 2 2 . . . . . . 1 . . Weapon . | . . . . . . . . . . . . . . . . Parts Attached 105 | 7 2 5 2 . 36 23 . 9 2 2 6 . 6 1 4 Power 10 | 1 1 1 . . 5 1 . 1 . . . . . . . Engine 8 | 1 1 1 . . 4 1 . . . . . . . . . Core 1 | . . . . . 1 . . . . . . . . . . Reactor 1 | . . . . . . . . 1 . . . . . . . Propulsion 27 | 2 . 2 . . 16 2 . 3 1 . . . 1 . . Treads 9 | . . . . . 9 . . . . . . . . . . Leg 5 | 2 . 2 . . 1 . . . . . . . . . . Wheel . | . . . . . . . . . . . . . . . . Hover 1 | . . . . . 1 . . . . . . . . . . Flight 12 | . . . . . 5 2 . 3 1 . . . 1 . . Utility 40 | 2 1 . 1 . 8 16 . 2 . 2 3 . 3 . 2 Device 16 | 1 . . . . 5 6 . . . 2 . . 2 . . Storage 4 | 1 1 . 1 . 1 . . . . . . . . . . Processor 4 | . . . . . 1 1 . 1 . . . . . . 1 Hackware 13 | . . . . . . 7 . 1 . . 3 . 1 . 1 Protection 3 | . . . . . 1 2 . . . . . . . . . Artifact . | . . . . . . . . . . . . . . . . Weapon 28 | 2 . 2 1 . 7 4 . 3 1 . 3 . 2 1 2 Energy Gun 5 | . . 1 . . 3 . . . . . 1 . . . . Energy Cannon 3 | . . . . . 1 1 . 1 . . . . . . . Ballistic Gun 6 | 2 . 1 . . 2 . . . . . . . . 1 . Ballistic Cannon 1 | . . . . . . . . . . . 1 . . . . Launcher 3 | . . . . . . . . . 1 . . . 1 . 1 Special Weapon . | . . . . . . . . . . . . . . . . Impact Weapon . | . . . . . . . . . . . . . . . . Slashing Weapon 4 | . . . . . 1 1 . 1 . . 1 . . . . Piercing Weapon 1 | . . . . . . . . . . . . . . . 1 Special Melee Weapon 5 | . . . 1 . . 2 . 1 . . . . 1 . . Unidentified Prototypes 10 | . . . . . 5 1 . 3 . . . . 1 . . Parts Lost 11 | . 1 . . . 3 1 . . 2 . . . 1 . 3 Power 2 | . 1 . . . 1 . . . . . . . . . . Propulsion 3 | . . . . . . . . . 1 . . . . . 2 Utility 3 | . . . . . 1 . . . 1 . . . . . 1 Weapon 3 | . . . . . 1 1 . . . . . . 1 . . Highest Loss Streak 2 | . 1 . . . 2 1 . . 2 . . . 1 . 2 To Critical Strikes . | . . . . . . . . . . . . . . . . Average Backups 12 | 3 5 14 15 17 19 9 10 9 9 8 9 9 8 8 8 Power . | . 1 . . . . . . . 1 1 1 1 . 1 1 Propulsion 3 | 1 2 3 5 6 7 1 2 1 . . . . . . . Utility 3 | . . 1 1 1 4 4 6 4 6 5 6 6 5 5 4 Weapon 4 | . 2 8 8 8 5 2 2 2 1 2 2 2 1 2 2 Tool/Special . | . . . . . . . . . . . . . . . . Unused Backups 35 | . . . . . 21 6 . 1 . . 2 . 2 . 3 Power 3 | . . . . . . 1 . 1 . . . . . . 1 Propulsion 15 | . . . . . 13 2 . . . . . . . . . Utility 9 | . . . . . 4 2 . . . . 1 . . . 2 Weapon 8 | . . . . . 4 1 . . . . 1 . 2 . . Tool/Special . | . . . . . . . . . . . . . . . . Average Slot Usage (%) 97 | . 99 100 100 100 95 97 100 99 99 100 100 100 93 100 99 Engine 8 | . 13 14 14 14 6 7 7 6 7 7 7 7 1 . . Treads 7 | . . . . . 30 . . . . . . . . . . Leg 9 | . 28 28 28 28 2 . . . . . . . . . . Flight 13 | . . . . . . 30 30 30 30 30 30 30 27 33 32 Device 14 | . 14 14 14 14 25 6 7 7 6 7 7 7 12 13 12 Storage 9 | . 14 14 14 14 9 7 7 7 7 7 7 7 6 6 6 Processor 2 | . . . . . . 7 7 7 7 7 7 7 6 6 6 Hackware 9 | . . . . . . 22 23 23 23 23 23 23 20 20 19 Energy Gun 4 | . . 4 2 13 10 . . . . . . . . . . Ballistic Gun 7 | . 28 23 14 14 3 . . . . . . . . 3 . Slashing Weapon 2 | . . . . . . 6 7 6 6 7 7 7 6 6 . Special Melee Weapon 3 | . . . 11 . . 5 7 7 6 7 7 7 5 2 5 Peak Build Rating 74 | 7 9 10 10 10 38 48 47 51 52 49 52 55 69 72 74 Average Rating 32 | 5 7 9 9 9 28 43 47 47 48 48 50 52 62 71 70 On Entrance 34 | . 7 9 10 9 10 32 47 47 49 45 48 52 53 69 70 Avg Prop Armor Cover (%) 3 | . . . . . . . . . . . . . 3 . . Naked Turns . | . . . . . . . . . . . . . . . . Heaviest Build 60 | 15 30 31 49 51 60 27 20 21 19 19 19 19 28 31 34 Greatest Support 112 | 20 20 20 20 20 112 20 20 28 28 20 20 20 47 37 47 Greatest Overweight (x) 2 | 2 1 1 2 2 2 1 . 1 . . . . . . . Average Overweight (x) . | . . 1 1 2 . . . . . . . . . . . Largest Inventory Capacity 20 | 8 15 15 20 20 20 10 10 10 10 10 10 10 10 10 10 Average Capacity 13 | 7 8 15 18 20 19 10 10 10 10 10 10 10 10 10 10 Most Carried 20 | 4 14 15 15 18 20 10 10 10 10 8 10 10 10 10 10 Average Carried 12 | 3 5 14 15 17 19 9 10 9 9 8 9 10 9 9 9 Final Capacity 20 | 8 15 15 20 20 10 10 10 10 10 10 10 10 10 10 10 Final Carried 18 | 4 14 15 15 18 7 10 10 10 9 8 10 10 9 10 9 Class Distribution -------------------- 33% | Mutant 33% | Hacker-Sprinter 22% | Scavenger-Mutant 10% | Trapper-Sprinter Dominant Class ---------------- Mutant | -10/Materials Mutant | -10/Mines Scavenger-Mutant | -10/Exiles Mutant | -9/Mines Scavenger-Mutant | -8/Materials Hacker-Sprinter | -7/Factory Trapper-Sprinter | -7/Waste Trapper-Sprinter | -7/Factory Hacker-Sprinter | -7/Lower Caves Hacker-Sprinter | -7/Lower Caves Hacker-Sprinter | -7/Zion Hacker-Sprinter | -6/Proximity Caves Hacker-Sprinter | -6/Factory Hacker-Sprinter | -6/Waste Hacker-Sprinter | -6/Factory Resources | -11 -10 -10 -10 -9 -8 -7 -7 -7 -7 -7 -7 -6 -6 -6 -6 ----------- Run | Yrd Mat Min Exi Min Mat Fac Was Fac Low Low Zio Pro Fac Was Fac Matter Collected 3075 | 318 300 116 . 87 592 394 . 371 107 17 123 59 300 30 261 Remotely . | . . . . . . . . . . . . . . . . Salvage Created 4158 | 112 478 135 . 210 1727 377 . 171 42 . . . 356 . 550 Parts 252 | 9 32 12 . 15 92 24 . 9 5 . . . 15 . 39 Haulers Intercepted 16 | . 1 . . . 6 5 . . . . . . 2 . 2 Recyclers Shooed 5 | . 1 1 . . 2 . . . . . . . . . 1 Parts Field Recycled . | . . . . . . . . . . . . . . . . Retrieved Matter . | . . . . . . . . . . . . . . . . Parts Self-Destructed 6 | . . . . . . . . . 6 . . . . . . Prevented 2 | . . . . . . . . . 2 . . . . . . Parts Restored 1 | . . . . . . 1 . . . . . . . . . Broken 1 | . . . . . . 1 . . . . . . . . . Kills | -11 -10 -10 -10 -9 -8 -7 -7 -7 -7 -7 -7 -6 -6 -6 -6 ------- Run | Yrd Mat Min Exi Min Mat Fac Was Fac Low Low Zio Pro Fac Was Fac Combat Hostiles Destroyed 65 | . 8 4 . 8 35 . . . 3 . . . 2 . 5 Melee 2 | . . . . . . . . . . . . . 1 . 1 Guns 53 | . 8 4 . 8 33 . . . . . . . . . . Cannons 3 | . . . . . 2 . . . . . . . 1 . . AOE 7 | . . . . . . . . . 3 . . . . . 4 Classes Destroyed 16 | 2 6 . . 1 4 . . . 1 . . . 1 . 1 Worker 6 | . 2 1 . . 3 . . . . . . . . . . Builder 7 | . . . . . 1 1 . . . . . . 1 . 4 Tunneler 3 | 2 . . . . . . . . . . . . . . 1 Hauler 16 | . 1 . . . 6 5 . . . . . . 2 . 2 Recycler 6 | 1 1 . . . 3 . . . . . . . . . 1 Minesweeper 1 | . . . . . . . . . 1 . . . . . . Operator 10 | . 2 . . . 3 2 . 2 . . . . 1 . . Watcher 15 | . 2 . . . 4 3 . 4 . . . . . . 2 Swarmer 17 | . 2 1 . 3 8 . . . 3 . . . . . . Cutter 4 | . . . . . . . . . . . . . . . 4 Grunt 26 | . 6 3 . 4 13 . . . . . . . . . . Brawler 5 | . . . . 1 3 . . . . . . . 1 . . Sentry 7 | . . . . . 7 . . . . . . . . . . Specialist 2 | . . . . . 2 . . . . . . . . . . Hunter 2 | . . . . . 2 . . . . . . . . . . Programmer 2 | . . . . . . . . . . . . . 1 . 1 Best Kill Streak 6 | 2 3 2 . 3 6 1 . 2 3 . . . 1 . 5 Combat Bots Only 4 | . 2 2 . 3 4 . . . 3 . . . 1 . 2 Max Kills in Single Turn 5 | 1 1 1 . 1 2 1 . 1 1 . . . 1 . 5 Gunslinging . | . . . . . . . . . . . . . . . . Exploded 2 | . . . . . . . . . 1 . . . . . 2 Melee 1 | . . . . . . . . . . . . . 1 . 1 Uniques/NPCs Destroyed . | . . . . . . . . . . . . . . . . Combat | -11 -10 -10 -10 -9 -8 -7 -7 -7 -7 -7 -7 -6 -6 -6 -6 -------- Run | Yrd Mat Min Exi Min Mat Fac Was Fac Low Low Zio Pro Fac Was Fac Hostile Shots Fired 447 | . 50 23 . 30 143 62 . 44 27 1 . . 29 . 38 Missed 177 | . 13 6 . 11 34 37 . 27 12 . . . 22 . 15 Hits 270 | . 37 17 . 19 109 25 . 17 15 1 . . 7 . 23 Melee 11 | . . . . 1 1 . . . . . . . . . 9 Projectile 259 | . 37 17 . 18 108 25 . 17 15 1 . . 7 . 14 AOE 6 | . . . . . . . . . . . . . 1 . 5 Critical Strikes 8 | . . 1 . 1 1 . . . . . . . 1 . 4 Damage Taken 4212 | . 353 172 . 200 1551 330 . 293 221 18 . . 288 . 786 Core 945 | . 39 52 . 58 288 111 . 82 71 . . . 83 . 161 Absorbed by Shields . | . . . . . . . . . . . . . . . . Regen/Repaired (Parts) 461 | . . . . . . . . 47 . . . . 268 55 91 Core Remaining (%) 62 | 100 . . . 40 47 . . . . . . 62 . . . Volleys Fired 246 | 8 49 15 . 19 126 5 . 1 6 . . 1 3 2 11 Largest 2 | 2 2 2 . 2 2 1 . 1 1 . . 1 1 1 2 Hottest 133 | 40 40 85 . 85 133 90 . 35 35 . . 35 35 33 85 Shots Fired 463 | 16 98 30 . 38 251 5 . 1 6 . . 1 3 2 12 Gun 404 | 16 98 30 . 38 220 . . . . . . . . 2 . Cannon 52 | . . . . . 31 5 . 1 2 . . 1 3 . 9 Launcher 7 | . . . . . . . . . 4 . . . . . 3 Special . | . . . . . . . . . . . . . . . . Kinetic 185 | 16 98 22 . 19 28 . . . . . . . . 2 . Thermal 271 | . . 8 . 19 223 5 . 1 2 . . 1 3 . 9 Explosive 7 | . . . . . . . . . 4 . . . . . 3 Electromagnetic . | . . . . . . . . . . . . . . . . Robot Hit Streak 26 | 5 14 6 . 6 26 . . . . . . . 1 1 2 Robot Miss Streak 20 | 2 5 4 . 4 8 . . . . . . . 2 1 20 Penetration Max . | . . . . . . . . . . . . . . . . Secondary Targets 9 | . 1 . . 1 7 . . . . . . . . . . Max Gunslinging Chain 1 | . 1 . . 1 1 . . . . . . . . . . Shots Hit Robots 417 | 9 58 20 4 30 205 32 . 12 1 . . . 25 1 20 Core Hits 364 | 4 24 14 . 26 248 6 . 5 4 . . . 6 . 27 Critical Kills 1 | . 1 . . . . . . . . . . . . . . Critical Parts Destroyed . | . . . . . . . . . . . . . . . . Critical Strikes 4 | . 1 . . . . 2 . . . . . . 1 . . Destroy 1 | . 1 . . . . . . . . . . . . . . Sever 3 | . . . . . . 2 . . . . . . 1 . . Melee Attacks 268 | . . . 4 . 1 100 . 53 10 1 1 10 53 2 33 Impact . | . . . . . . . . . . . . . . . . Slashing 220 | . . . . . 1 98 . 53 10 1 1 10 44 2 . Piercing 33 | . . . . . . . . . . . . . . . 33 Sneak Attacks 41 | . . . 4 . 1 11 . 5 1 . . . 14 . 5 Combat Hostiles 1 | . . . . . . . . . . . . . 1 . . Follow-up Attacks . | . . . . . . . . . . . . . . . . Damage Inflicted 10321 | 113 766 260 . 418 3371 1737 . 683 459 . . . 1097 7 1410 Guns 4482 | 111 762 258 . 413 2931 . . . . . . . . 7 . Cannons 416 | . . . . . 287 . . . . . . . 64 . 65 Explosions 1089 | . . . . . . . . . 396 . . . 173 . 520 Melee 4257 | . . . . . 89 1737 . 683 63 . . . 860 . 825 Ramming 77 | 2 4 2 . 5 64 . . . . . . . . . . Kinetic 1555 | 111 762 166 . 185 324 . . . . . . . . 7 . Thermal 3516 | . . 92 . 228 2894 . . . . . . . 237 . 65 Explosive 916 | . . . . . . . . . 396 . . . . . 520 Electromagnetic . | . . . . . . . . . . . . . . . . Impact . | . . . . . . . . . . . . . . . . Slashing 3432 | . . . . . 89 1737 . 683 63 . . . 860 . . Piercing 825 | . . . . . . . . . . . . . . . 825 Highest Corruption 11 | . . . . . . 1 7 8 8 8 7 . . . 11 Average Corruption 4 | . . . . . . 1 2 7 8 7 7 . . . 4 Corruption Purged 1 | . . . . . . . . . . 1 . . . . . Corruption Blocked . | . . . . . . . . . . . . . . . . Effects 94 | . . . . . . 10 1 41 21 6 . . . . 15 Message Errors 19 | . . . . . . 4 1 9 2 . . . . . 3 Matter Fused 27 | . . . . . . 1 . 10 6 4 . . . . 6 Heat Flow Errors 11 | . . . . . . . . 3 5 . . . . . 3 Energy Discharges 10 | . . . . . . 2 . 4 3 1 . . . . . Parts Rejected 2 | . . . . . . . . 1 1 . . . . . . Data Loss (minor) 14 | . . . . . . 2 . 7 3 . . . . . 2 Data Loss (major) 9 | . . . . . . 1 . 6 1 1 . . . . . Alerts 1 | . . . . . . . . 1 . . . . . . . Weapon Failures 1 | . . . . . . . . . . . . . . . 1 Overload Shots 3 | . . . . . . 3 . . . . . . . . . Overflow Damage 683 | . . . . . 68 305 . 141 5 . . . 114 . 50 Projectiles 17 | . . . . . 9 . . . . . . . 8 . . Explosions 48 | . . . . . . . . . 5 . . . 43 . . Melee 618 | . . . . . 59 305 . 141 . . . . 63 . 50 Knockbacks 1 | . . . . . 1 . . . . . . . . . . Impact 1 | . . . . . 1 . . . . . . . . . . Kinetic . | . . . . . . . . . . . . . . . . Secondary . | . . . . . . . . . . . . . . . . Self-Inflicted Damage 291 | . . . . . . . . . . . . . 59 . 232 Shots 10 | . . . . . . . . . . . . . 1 . 9 Rammed 7 | . . . . . 7 . . . . . . . . . . Targets Rammed 16 | 1 2 2 . 2 9 . . . . . . . . . . Kicked 7 | 1 2 2 . 2 . . . . . . . . . . . Crushed 2 | . . . . . 2 . . . . . . . . . . Highest Temperature 249 | . . 159 . 237 144 42 . 246 231 . . . 81 4 249 Average Temperature 44 | . . 63 . 65 66 22 . 63 89 . . . 5 2 38 Received Heat Transfer 963 | . 144 45 . 75 612 15 . 27 27 . . . 18 . . Siege Activations . | . . . . . . . . . . . . . . . . Martial Activations . | . . . . . . . . . . . . . . . . Shielding Activations . | . . . . . . . . . . . . . . . . Robots Disrupted . | . . . . . . . . . . . . . . . . Combat Hostiles . | . . . . . . . . . . . . . . . . Robots Corrupted . | . . . . . . . . . . . . . . . . Combat Hostiles . | . . . . . . . . . . . . . . . . Parts Fried 1 | . . . . . . . . . . . . . . . 1 Impact Corruptions . | . . . . . . . . . . . . . . . . Robots Melted . | . . . . . . . . . . . . . . . . Combat Hostiles . | . . . . . . . . . . . . . . . . Parts Melted 2 | . . . . . 2 . . . . . . . . . . Heat Transferred 4388 | . . 110 . 265 3713 . . . . . . . 200 . 100 Parts Sabotaged . | . . . . . . . . . . . . . . . . Parts Stolen . | . . . . . . . . . . . . . . . . Parts Stripped . | . . . . . . . . . . . . . . . . Power Chain Reactions . | . . . . . . . . . . . . . . . . Alert | -11 -10 -10 -10 -9 -8 -7 -7 -7 -7 -7 -7 -6 -6 -6 -6 ------- Run | Yrd Mat Min Exi Min Mat Fac Was Fac Low Low Zio Pro Fac Was Fac Maximum Alert Level 2 | . . . . . 2 1 . 1 . . . . . . . Low Security (%) 85 | 100 100 100 . 100 51 90 100 95 . . . . 100 100 100 Level 1 4 | . . . . . 10 9 . 4 . . . . . . . Level 2 10 | . . . . . 37 . . . . . . . . . . Level 3 . | . . . . . . . . . . . . . . . . Level 4 . | . . . . . . . . . . . . . . . . Level 5 . | . . . . . . . . . . . . . . . . High Security . | . . . . . . . . . . . . . . . . Max Security . | . . . . . . . . . . . . . . . . Peak Influence 567 | 10 66 144 . 69 567 258 21 231 . . . . 109 38 167 Initial 257 | . . 16 . . . 257 21 7 . . . . . 26 1 Average 106 | 1 16 33 . 8 275 99 20 65 . . . . 37 19 40 Influence Increases 4455 | 15 272 251 . 205 1077 705 . 755 260 45 . . 421 36 413 Destroy 0b10 Robot/C 1480 | . 160 180 . 160 700 40 . . 60 . . . 80 . 100 Destroy 0b10 Robot/NC 320 | 15 40 5 . . 100 60 . 25 5 . . . 20 . 50 Destroy Leader 360 | . 26 30 . 30 190 24 . 8 . . . . 14 . 38 Allied During Kill 24 | . . 21 . . . . . . . . . . 3 . . Trap Triggered on 0b10 160 | . . . . . 20 . . 40 . . . . 60 . 40 Successful Hack 206 | . . . . . 6 76 . 49 . . . . 34 . 41 Select Force Hacks 30 | . 30 . . . . . . . . . . . . . . Disable Machine 135 | . . 15 . . 30 45 . 15 . . . . 30 . . Destroy Structure 255 | . 1 . . . 1 55 . 33 . . . . 45 36 84 Partial Spotted 300 | . 15 . . . 15 75 . 165 . . . . 15 . 15 Lose Combat Pursuer 1185 | . . . . 15 15 330 . 420 195 45 . . 120 . 45 Influence Decreases 4288 | 15 230 250 43 205 510 1210 51 539 359 115 58 . 344 111 248 Entered New Map 644 | . . 26 43 . . 310 41 4 85 25 58 . . 51 1 Time Decay 3242 | 15 220 204 . 205 500 618 10 515 254 90 . . 324 60 227 Lost Part 80 | . 10 . . . 10 10 . . 20 . . . 10 . 20 Lost Ally 110 | . . 20 . . . 60 . 20 . . . . 10 . . Purge Threat 212 | . . . . . . 212 . . . . . . . . . Squads Dispatched 51 | . 3 . . . 5 23 . 4 . . . . 9 . 7 Investigation 10 | . 1 . . . 1 6 . . . . . . 1 . 1 Extermination 17 | . . . . . . 8 . 4 . . . . 4 . 1 Reinforcement 19 | . 2 . . . 4 4 . . . . . . 4 . 5 Assault . | . . . . . . . . . . . . . . . . Garrison 5 | . . . . . . 5 . . . . . . . . . Intercept . | . . . . . . . . . . . . . . . . Searches Triggered . | . . . . . . . . . . . . . . . . Construction Impeded . | . . . . . . . . . . . . . . . . Haulers Reinforced 1 | . . . . . . 1 . . . . . . . . . Active Scanning Responses . | . . . . . . . . . . . . . . . . Cargo Convoy Interrupts 2 | . . . . . . . . 1 . . . . 1 . . Stealth | -11 -10 -10 -10 -9 -8 -7 -7 -7 -7 -7 -7 -6 -6 -6 -6 --------- Run | Yrd Mat Min Exi Min Mat Fac Was Fac Low Low Zio Pro Fac Was Fac Distress Signals 12 | . 1 . . 1 4 2 . 1 . . . . 2 . 1 Communications Jammed . | . . . . . . . . . . . . . . . . Distress Signals . | . . . . . . . . . . . . . . . . Times Spotted 217 | . 22 9 . 9 48 37 4 34 17 1 . . 18 6 12 Peak Tracking Total 7 | . 4 3 . 2 5 6 4 6 7 3 . . 7 6 4 Tactical Retreats 45 | . . . . 1 1 16 . 12 5 1 . . 6 . 3 Traps | -11 -10 -10 -10 -9 -8 -7 -7 -7 -7 -7 -7 -6 -6 -6 -6 ------- Run | Yrd Mat Min Exi Min Mat Fac Was Fac Low Low Zio Pro Fac Was Fac Traps Triggered 14 | . . . . . 1 2 . 3 . . . . 3 . 5 Indirectly . | . . . . . . . . . . . . . . . . Trap Hack Attempts 113 | . . . . . 8 58 . 8 . . . . 20 . 19 Triggered 2 | . . . . . . 1 . . . . . . 1 . . Disarmed 1 | . . . . . . . . . . . . . . . 1 Reprogrammed 27 | . . . . . 2 11 . 1 . . . . 10 . 3 Reused 16 | . . . . . 2 . . 4 . . . . 6 . 4 Traps Extracted 19 | . . . . . . 11 . 1 . . . . 4 . 3 Installed 13 | . . . . . . . . 4 . . . . 5 . 4 Triggered 16 | . . . . . 2 . . 4 . . . . 6 . 4 Most Traps Carried 12 | . . . . . . 11 11 12 8 8 8 8 12 7 10 Machines | -11 -10 -10 -10 -9 -8 -7 -7 -7 -7 -7 -7 -6 -6 -6 -6 ---------- Run | Yrd Mat Min Exi Min Mat Fac Was Fac Low Low Zio Pro Fac Was Fac Machines Disabled 9 | . . 1 . . 2 3 . 1 . . . . 2 . . Max in Single Turn 2 | . . . . . 1 1 . 1 . . . . 2 . . Garrison Access 5 | . . . . . . 2 . 1 . . . . 1 . 1 Machines Repaired . | . . . . . . . . . . . . . . . . Machines Dismantled . | . . . . . . . . . . . . . . . . Machines Sabotaged . | . . . . . . . . . . . . . . . . Overloaded Fab Kills . | . . . . . . . . . . . . . . . . Hacking | -11 -10 -10 -10 -9 -8 -7 -7 -7 -7 -7 -7 -6 -6 -6 -6 --------- Run | Yrd Mat Min Exi Min Mat Fac Was Fac Low Low Zio Pro Fac Was Fac Machines Accessed 63 | . 2 . . . 4 20 . 17 . . 1 . 11 . 8 Terminals 31 | . 1 . . . 3 8 . 11 . . . . 5 . 3 Fabricators 11 | . . . . . . 6 . 2 . . . . 2 . 1 Repair Stations 6 | . . . . . . 1 . 1 . . . . 3 . 1 Recycling Units 4 | . 1 . . . . . . 1 . . . . . . 2 Scanalyzers 3 | . . . . . 1 2 . . . . . . . . . Garrison Access 7 | . . . . . . 3 . 2 . . . . 1 . 1 Total Hacks 170 | . 4 . . . 7 63 . 40 . . 2 . 36 . 18 Successful 100 | . 2 . . . 3 33 . 24 . . 2 . 26 . 10 Failed 70 | . 2 . . . 4 30 . 16 . . . . 10 . 8 Catastrophic 14 | . . . . . . 8 . 3 . . . . . . 3 Database Lockouts . | . . . . . . . . . . . . . . . . Manual 81 | . 4 . . . 5 32 . 19 . . . . 10 . 11 Terminals 77 | . 2 . . . 5 26 . 24 . . . . 12 . 8 Fabricators 40 | . . . . . . 26 . 5 . . . . 6 . 3 Repair Stations 22 | . . . . . . 1 . 2 . . . . 17 . 2 Recycling Units 8 | . 2 . . . . . . 2 . . . . . . 4 Scanalyzers 5 | . . . . . 2 3 . . . . . . . . . Garrison Access 16 | . . . . . . 7 . 7 . . . . 1 . 1 Terminal Hacks 25 | . . . . . . 6 . 10 . . 2 . 3 . 4 Part Schematic 4 | . . . . . . 1 . 1 . . 2 . . . . Prototype ID Bank 2 | . . . . . . . . 2 . . . . . . . Branch Access Points 2 | . . . . . . . . 1 . . . . . . 1 Terminal Index 3 | . . . . . . . . 1 . . . . . . 2 Fabricator Index 1 | . . . . . . . . . . . . . 1 . . Alert Level 1 | . . . . . . . . 1 . . . . . . . Unreport Threat 3 | . . . . . . 3 . . . . . . . . . Locate Traps 3 | . . . . . . 1 . 1 . . . . 1 . . Reprogram Traps 1 | . . . . . . . . . . . . . 1 . . Hauler Manifests 3 | . . . . . . 1 . 1 . . . . . . 1 Registered Components 1 | . . . . . . . . 1 . . . . . . . Zone Layout 1 | . . . . . . . . 1 . . . . . . . Fabricator Hacks 19 | . . . . . . 12 . 3 . . . . 3 . 1 Network Status 3 | . . . . . . 1 . 1 . . . . . . 1 Load Schematic 10 | . . . . . . 7 . 1 . . . . 2 . . Build 6 | . . . . . . 4 . 1 . . . . 1 . . Repair Station Hacks 19 | . . . . . . . . 2 . . . . 15 . 2 Scan Component 10 | . . . . . . . . 1 . . . . 8 . 1 Repair 9 | . . . . . . . . 1 . . . . 7 . 1 Recycling Unit Hacks . | . . . . . . . . . . . . . . . . Scanalyzer 4 | . . . . . 2 2 . . . . . . . . . Insert Component 1 | . . . . . . 1 . . . . . . . . . Analyze 1 | . . . . . . 1 . . . . . . . . . Retrieve Study 2 | . . . . . 2 . . . . . . . . . . Garrison Access Hacks 5 | . . . . . . 2 . 1 . . . . 1 . 1 Seal Access 5 | . . . . . . 2 . 1 . . . . 1 . 1 Unauthorized Hacks 28 | . 2 . . . 1 11 . 8 . . . . 4 . 2 Terminals 15 | . 1 . . . 1 5 . 6 . . . . 2 . . Track 1 | . . . . . . . . 1 . . . . . . . Assimilate 8 | . . . . . . 3 . 4 . . . . 1 . . Operators 4 | . . . . . 1 1 . 1 . . . . 1 . . Skim 2 | . 1 . . . . 1 . . . . . . . . . Fabricators 10 | . . . . . . 6 . 1 . . . . 2 . 1 Liberate 1 | . . . . . . 1 . . . . . . . . . Haulers 4 | . . . . . . 1 . 1 . . . . 1 . 1 Recompile 5 | . . . . . . 4 . . . . . . 1 . . Repair Stations . | . . . . . . . . . . . . . . . . Recycling Units 3 | . 1 . . . . . . 1 . . . . . . 1 Mask 2 | . . . . . . . . 1 . . . . . . 1 Tunnel 1 | . 1 . . . . . . . . . . . . . . Scanalyzers . | . . . . . . . . . . . . . . . . Garrison Access . | . . . . . . . . . . . . . . . . Data Cores Recovered 1 | . . . . . . . . 1 . . . . . . . Used . | . . . . . . . . . . . . . . . . Hacking Detections 42 | . 1 . . . 3 15 . 12 . . . . 5 . 6 Full Trace Events 2 | . . . . . 1 1 . . . . . . . . . Feedback Events . | . . . . . . . . . . . . . . . . Feedback Blocked . | . . . . . . . . . . . . . . . . Robot Schematics Acquired 4 | . . . . . . . . . . . 4 . . . . Robots Built 1 | . . . . . . 1 . . . . . . . . . Authchips . | . . . . . . . . . . . . . . . . Time 116 | . . . . . . 116 . . . . . . . . . Total Robot Build Rating 3 | . . . . . . 3 . . . . . . . . . Part Schematics Acquired 20 | . . . . . . 2 . 1 . . 17 . . . . Parts Built 5 | . . . . . . 3 . 1 . . . . 1 . . Authchips 5 | . . . . . . 3 . 1 . . . . 1 . . Time 333 | . . . . . . 132 . 134 . . . . 67 . . Total Part Build Rating 20 | . . . . . . 12 . 4 . . . . 4 . . Part Studies Acquired 2 | . . . . . 2 . . . . . . . . . . Parts Repaired 9 | . . . . . . . . 1 . . . . 7 . 1 Time 505 | . . . . . . . . 38 . . . . 423 . 44 Parts Recycled . | . . . . . . . . . . . . . . . . Recycled Matter . | . . . . . . . . . . . . . . . . Retrieved Matter . | . . . . . . . . . . . . . . . . Retrieved Components . | . . . . . . . . . . . . . . . . Parts Scanalyzed 1 | . . . . . . 1 . . . . . . . . . Part Schematics Acquired 1 | . . . . . . 1 . . . . . . . . . Parts Damaged 1 | . . . . . . 1 . . . . . . . . . Bothacking | -11 -10 -10 -10 -9 -8 -7 -7 -7 -7 -7 -7 -6 -6 -6 -6 ------------ Run | Yrd Mat Min Exi Min Mat Fac Was Fac Low Low Zio Pro Fac Was Fac Used RIF Installer . | . . . . . . . . . . . . . . . . Robots Hacked 8 | . . . 4 . . 1 . . . . . . 3 . . Non-combat 7 | . . . 3 . . 1 . . . . . . 3 . . Combat 1 | . . . 1 . . . . . . . . . . . . Robot Hacks Applied 8 | . . . 4 . . 1 . . . . . . 3 . . parse_system 4 | . . . 4 . . . . . . . . . . . . no_distress 2 | . . . . . . . . . . . . . 2 . . find_chute 2 | . . . . . . 1 . . . . . . 1 . . Relay Couplers Released . | . . . . . . . . . . . . . . . . Fabnet Peak Effective % . | . . . . . . . . . . . . . . . . Robots Rewired 1 | . . . . . . . . . . . . . 1 . . Allies Hacked 2 | . . . . . . . . 1 . . . . 1 . . Hacks Repelled . | . . . . . . . . . . . . . . . . Allies | -11 -10 -10 -10 -9 -8 -7 -7 -7 -7 -7 -7 -6 -6 -6 -6 -------- Run | Yrd Mat Min Exi Min Mat Fac Was Fac Low Low Zio Pro Fac Was Fac Total Allies 31 | . . 3 . . . 5 . 3 . . . . 2 18 . Largest Group 18 | . . 3 . . . 3 . 1 . . . . 2 18 . Highest-Rated Group 656 | . . 40 . . . 90 . 26 . . . . 60 656 . Highest-Rated Ally 50 | . . 16 . . . 32 . 26 . . . . 41 50 . Total Orders 6 | . . . . . . 3 . 2 . . . . 1 . . STAY 4 | . . . . . . 2 . 1 . . . . 1 . . FOLLOW 2 | . . . . . . 1 . 1 . . . . . . . Ally Attacks 120 | . . 19 . . . 5 . . . . . . 9 87 . Total Damage 4056 | . . 185 . . . 191 . . . . . . 279 3401 . Kills 17 | . . 6 . . . 3 . . . . . . 2 6 . Allies Corrupted 1 | . . . . . . 1 . . . . . . . . . Allies Melted . | . . . . . . . . . . . . . . . . Intel | -11 -10 -10 -10 -9 -8 -7 -7 -7 -7 -7 -7 -6 -6 -6 -6 ------- Run | Yrd Mat Min Exi Min Mat Fac Was Fac Low Low Zio Pro Fac Was Fac Active Infowar (turns) 15661 | 25 1711 1327 525 1632 3837 2088 21 1465 536 161 286 113 1072 135 727 Sensors 6585 | . . . . . 17 2076 21 1463 536 161 286 113 1072 135 705 Seismic 9040 | 25 1711 1327 525 1632 3820 . . . . . . . . . . T.N.C. 36 | . . . . . . 12 . 2 . . . . . . 22 Robot Analysis Total . | . . . . . . . . . . . . . . . . Derelict Logs Recovered 7 | . . 1 . 1 . . . . 1 1 2 1 . . . Drone Launches . | . . . . . . . . . . . . . . . . Drone Recoveries . | . . . . . . . . . . . . . . . . Exploration | -11 -10 -10 -10 -9 -8 -7 -7 -7 -7 -7 -7 -6 -6 -6 -6 ------------- Run | Yrd Mat Min Exi Min Mat Fac Was Fac Low Low Zio Pro Fac Was Fac Turns Passed 16286 | 110 1711 1327 525 1632 3874 2318 21 1482 548 193 289 113 1170 135 838 Spaces Moved 18030 | 63 376 558 224 592 1041 4528 80 3734 877 598 1013 333 2465 259 1289 Core 15 | 15 . . . . . . . . . . . . . . . Treads 952 | . . . . . 952 . . . . . . . . . . Legs 1881 | 48 376 558 224 592 83 . . . . . . . . . . Wheels . | . . . . . . . . . . . . . . . . Hover . | . . . . . . . . . . . . . . . . Flight 15182 | . . . . . 6 4528 80 3734 877 598 1013 333 2465 259 1289 Fastest Speed 5 | 50 120 190 190 260 26 26 26 14 14 26 26 26 5 23 5 Average Speed 51 | 112 135 190 231 260 166 26 26 25 25 26 26 26 25 23 22 Slowest Speed 320 | 150 190 190 260 260 320 96 26 92 26 26 26 26 32 23 23 Overloaded Moves 92 | . . . . . . . . 37 33 . . . 10 . 12 Propulsion Burnouts 1 | . . . . . . . . . 1 . . . . . . Robots Hopped 91 | . . . . . . 28 . 41 3 . . . 13 . 6 Potential Cave-ins . | . . . . . . . . . . . . . . . . Cave-ins Triggered . | . . . . . . . . . . . . . . . . Exploration Rate (%) 65 | 5 59 96 64 97 82 63 83 69 75 76 80 57 40 89 20 Regions Visited 15 Branch Regions 7 Pre-discovered Areas 6 | . 1 2 . . . . . . . 1 2 . . . . Known Exits Taken 6 | . . . . . 1 . . 1 1 1 1 1 . . . Unknown Exits Taken 5 | 1 1 1 1 1 . . . . . . . . . . . Scrap Searched 12 | . . 2 . 1 . . . . 3 2 2 2 . . . Spaces Dug 175 | . . . . . . 53 . 33 38 1 . 10 23 1 16 Terrain Destroyed 291 | . . . . . . 56 . 33 40 1 . 11 50 1 99 Melee 140 | . . . . . . 52 . 32 9 1 . 10 23 1 12 Projectile 14 | . . . . . . 4 . 1 2 . . 1 . . 6 AOE 137 | . . . . . . . . . 29 . . . 27 . 81 Terrain Rammed . | . . . . . . . . . . . . . . . . Walls Destroyed . | . . . . . . . . . . . . . . . . Machines Disabled . | . . . . . . . . . . . . . . . . Actions | -11 -10 -10 -10 -9 -8 -7 -7 -7 -7 -7 -7 -6 -6 -6 -6 --------- Run | Yrd Mat Min Exi Min Mat Fac Was Fac Low Low Zio Pro Fac Was Fac Total 24024 | 82 1478 795 230 644 2935 5470 79 4125 1173 633 1037 347 2931 329 1736 Wait 5018 | . 1041 208 . 28 1609 717 . 330 278 30 . . 361 62 354 Move 17845 | 63 375 557 223 591 1040 4474 79 3655 871 597 1012 332 2441 258 1277 Hop 82 | . . . . . . 26 . 37 2 . . . 11 . 6 Pick Up 89 | 4 9 3 . 3 28 22 . 5 . . 6 1 4 2 2 Fast Attach 71 | 7 1 . . . 21 10 . 7 1 2 6 . 11 . 5 Attach 34 | . . . . . 15 7 . 4 1 1 1 . 3 . 2 Detach 6 | . . . . . 1 2 . 2 . . . . 1 . . Swap 100 | . 1 5 2 1 22 25 . 9 4 . 2 2 13 2 12 Drop 116 | . . 5 1 . 55 24 . 10 . 2 9 1 5 1 3 Fire 246 | 8 49 15 . 19 126 5 . 1 6 . . 1 3 2 11 Melee 268 | . . . 4 . 1 100 . 53 10 1 1 10 53 2 33 Ram . | . . . . . . . . . . . . . . . . Kick 6 | . 2 2 . 2 . . . . . . . . . . . Crush 9 | . . . . . 9 . . . . . . . . . . Escape Stasis 8 | . . . . . . . . . . . . . . . 8 Rewire . | . . . . . . . . . . . . . . . . Trap 126 | . . . . . 8 58 . 12 . . . . 25 . 23 Miscellaneous . | . . . . . . . . . . . . . . . . Route ------- -11/Scrapyard -10/Materials (discovered 4 exits: [*Mat x2] / [*Min x2]) -10/Mines (discovered 3 exits: [*Mat x2] / [*Exi]) -10/Exiles -9/Mines (discovered 2 exits: *Mat x2) -8/Materials (discovered 2 exits: *Fac x2) -7/Factory (discovered 4 exits: *Fac x2 / *Low x2) -7/Waste -7/Factory (discovered 6 exits: *Fac x4 / *Low x2) -7/Lower Caves -7/Lower Caves (discovered 2 exits: *Fac / *Zio) -7/Zion -6/Proximity Caves -6/Factory (discovered 2 exits: [*Fac] / *Low) -6/Waste -6/Factory (discovered 2 exits: Low x2) History --------- Turn | Location | Event 12 | -11/Scrapyard | Discovered new exit (range 16) 111 | -11/Scrapyard | Entered Materials 302 | -10/Materials | Build established: Mutant 1450 | -10/Materials | Discovered new exit (range 16) 1619 | -10/Materials | Discovered new exit (range 13) 1710 | -10/Materials | Discovered new exit (range 12) 1797 | -10/Materials | Discovered new exit (range 14) 1822 | -10/Materials | Entered Mines 2149 | -10/Mines | Discovered new exit (range 6) 2278 | -10/Mines | Assisted by bots powering up and referring to "LRC-V3" 2690 | -10/Mines | Excavation squad dispatched 2690 | -10/Mines | A large section of the Mines collapsed 3050 | -10/Mines | Discovered new exit (range 3) 3055 | -10/Mines | Learned location of Storage (-9) 3060 | -10/Mines | Learned location of Zion (-7) 3138 | -10/Mines | Deemed a non-threat by the Exiles lab entrance 3140 | -10/Mines | Discovered new exit (range 5) 3149 | -10/Mines | Entered Exiles 3201 | -10/Exiles | Met 8R-AWN 3227 | -10/Exiles | Met EX-HEX 3372 | -10/Exiles | Met EX-DEC 3464 | -10/Exiles | Met EX-BIN 3521 | -10/Exiles | Build established: Scavenger-Mutant 3637 | -10/Exiles | Discovered new exit (range 14) 3674 | -10/Exiles | Entered Mines 3676 | -9/Mines | Met a Derelict bent on vengeance 3682 | -9/Mines | Learned location of 1 exit from Materials 3813 | -9/Mines | Core integrity fell below 50% 4027 | -9/Mines | Build established: Mutant 4536 | -9/Mines | Discovered new exit (range 8) 4562 | -9/Mines | Discovered new exit (range 10) 5306 | -9/Mines | Entered Materials 5306 | -8/Materials | Evolved 4 slots: Propulsion x2, Utility x2 5307 | -8/Materials | Identified exit to Factory 5612 | -8/Materials | Build established: Scavenger-Mutant 6176 | -8/Materials | Build established: Mutant 6849 | -8/Materials | Build established: Scavenger-Mutant 9019 | -8/Materials | Core integrity fell below 50% 9129 | -8/Materials | Discovered exit to Factory (range 15) 9180 | -8/Materials | Entered Factory 9180 | -7/Factory | Evolved 2 slots: Utility x2 9337 | -7/Factory | Discovered new exit (range 6) 9342 | -7/Factory | Identified exit to Factory 9447 | -7/Factory | Build established: Hacker-Sprinter 9475 | -7/Factory | Fabricated O-24 Administrator (x1) 9604 | -7/Factory | Discovered new exit (range 15) 9618 | -7/Factory | Identified exit to Lower Caves 9674 | -7/Factory | Garrison activated, responded to threat 9991 | -7/Factory | Garrison activated, responded to threat 10252 | -7/Factory | Garrison activated, responded to threat 10469 | -7/Factory | Fabricated Cld. VTOL Module (x1) 10513 | -7/Factory | Fabricated Cld. VTOL Module (x1) 10559 | -7/Factory | Fabricated Cld. VTOL Module? 10705 | -7/Factory | Discovered exit to Factory (range 15) 10909 | -7/Factory | Discovered exit to Lower Caves (range 5) 11498 | -7/Factory | Manually triggered Chute Trap 11498 | -7/Factory | Sucked down chute 11498 | -7/Factory | Entered Waste 11501 | -7/Waste | Spotted C-40 Crusher 11503 | -7/Waste | Spotted C-40 Crusher 11504 | -7/Waste | Spotted C-40 Crusher 11507 | -7/Waste | Spotted C-40 Crusher 11509 | -7/Waste | Spotted C-40 Crusher 11513 | -7/Waste | EMP discharged 11516 | -7/Waste | Discovered new exit (range 11) 11519 | -7/Waste | Identified exit to Factory 11519 | -7/Waste | Entered Factory 11663 | -7/Factory | Fabricated Cld. VTOL Module (x1) 11684 | -7/Factory | Build established: Trapper-Sprinter 11809 | -7/Factory | Discovered exit to Factory (range 8) 12076 | -7/Factory | Discovered exit to Factory (range 11) 12142 | -7/Factory | Discovered exit to Factory (range 6) 12447 | -7/Factory | Discovered exit to Factory (range 7) 12599 | -7/Factory | Repaired Lgt. Deuterium Engine+ 12867 | -7/Factory | Cargo convoy interrupted 13001 | -7/Factory | Entered Lower Caves 13019 | -7/Lower Caves | Learned 4 Factory zone layouts 13101 | -7/Lower Caves | Encountered a Warlord checkpoint 13129 | -7/Lower Caves | Build established: Hacker-Sprinter 13546 | -7/Lower Caves | Discovered new exit (range 10) 13548 | -7/Lower Caves | Identified exit to Lower Caves 13549 | -7/Lower Caves | Entered another Lower Caves area 13560 | -7/Lower Caves | Discovered exit to Factory (range 11) 13648 | -7/Lower Caves | Discovered new exit (range 15) 13652 | -7/Lower Caves | Identified exit to Zion 13742 | -7/Lower Caves | Entered Zion 13751 | -7/Zion | System corruption cleaned by Quarantine Array 13772 | -7/Zion | Discovered new exit (range 11) 13783 | -7/Zion | Identified exit to Proximity Caves 13902 | -7/Zion | Learned Factory garrison access intel 13997 | -7/Zion | Found GAL Module 14031 | -7/Zion | Entered Proximity Caves 14034 | -6/Proximity Caves | Learned Factory terminal intel 14131 | -6/Proximity Caves | Discovered exit to Factory (range 11) 14144 | -6/Proximity Caves | Entered Factory 14144 | -6/Factory | Evolved 2 slots: Propulsion x1, Utility x1 14146 | -6/Factory | Loaded intel: 26 terminal locations 14147 | -6/Factory | Loaded intel: 4 garrison access locations 14233 | -6/Factory | Repaired Lgt. Deuterium Engine+ 14271 | -6/Factory | Repaired Cld. VTOL Module? 14305 | -6/Factory | Repaired Cld. VTOL Module? 14348 | -6/Factory | Found Prototype Launcher 14348 | -6/Factory | Identified Scatter Rocket Array 14352 | -6/Factory | Found Scatter Rocket Array 14371 | -6/Factory | Repaired Cld. Plasma Cannon? 14389 | -6/Factory | Repaired Cld. VTOL Module 14459 | -6/Factory | Repaired Cld. VTOL Module? 14676 | -6/Factory | Fabricated Cld. VTOL Module? 14709 | -6/Factory | Spotted B-75 Beast 14725 | -6/Factory | Watched by a mysterious "MATRIX" hacker. 14901 | -6/Factory | Discovered new exit (range 13) 15231 | -6/Factory | Cargo convoy interrupted 15291 | -6/Factory | Repaired Adv. Sensor Array 15297 | -6/Factory | Discovered new exit (range 15) 15314 | -6/Factory | Manually triggered Chute Trap 15314 | -6/Factory | Sucked down chute 15314 | -6/Factory | Entered Waste 15316 | -6/Waste | Spotted C-40 Crusher 15320 | -6/Waste | Spotted C-40 Crusher 15320 | -6/Waste | Spotted C-40 Crusher 15323 | -6/Waste | Spotted C-40 Crusher 15334 | -6/Waste | Spotted C-40 Crusher 15335 | -6/Waste | Discovered new exit (range 16) 15338 | -6/Waste | Spotted C-40 Crusher 15346 | -6/Waste | Warlord forces began an assault 15360 | -6/Waste | Allies destroyed C-40 Crusher 15365 | -6/Waste | Allies destroyed C-40 Crusher 15367 | -6/Waste | Allies destroyed C-40 Crusher 15371 | -6/Waste | Allies destroyed C-40 Crusher 15379 | -6/Waste | Allies destroyed C-40 Crusher 15448 | -6/Waste | Identified exit to Factory 15449 | -6/Waste | Entered Factory 15507 | -6/Factory | Identified exit to Lower Caves 15925 | -6/Factory | Repaired Fusion Reactor 15956 | -6/Factory | Spotted B-75 Beast 16278 | -6/Factory | System corruption reached 10% 16287 | -6/Factory | Self-destructed Last Messages --------------- 16220_ Z2G|U%VYJNDSC5&USZVZWJ1NHEFXR 16252_ System corrupted: Cld. Plasma Cannon failed to cycle. 16258_ U-05 Engineer builds a Wall. 16266_ System corrupted: Heat flow error (+236). 16266_ U-05 Engineer destroyed. 16268_ U-05 Engineer builds a Wall. 16272_ K-01 Serf collects debris. 16276_ Cld. VTOL Module destroyed. 16276_ System corrupted by crushing effect (+1). 16276_ Knocked back. 16277_ W-25 Informer sends out distress signal. 16277_ Cld. VTOL Module destroyed. 16277_ System corrupted by crushing effect (+5). 16277_ Knocked back. 16278_ C-17 Slicer destroyed. 16279_ Knocked back. 16282_ System corrupted: Matter fused (-7). 16282_ W-25 Informer destroyed. 16285_ Scatter Rocket Array severed. Map ----- +----------------------------------------------------+ | ??????????????????????# """"" #????# #??? | | ??????????????????????# """ ###### #??? | | ??????????????????????# + #??? | | ??????????????????????# = ###### #??? | | ??????????????????????# [ ]#????# #??# | | ??????????????????????# * #????# #??# | | ??????????????????????#######+########### %##?? | | ??????????????????????????# ^ !#= # | | ??????????????????????????# ##?? | | ??????????????????????????#^ ##?? | | ??????????????????????? """"""" """"""" #??? | | ?????????????######## """"""" """"""" #??? | | ?????????????# """"""" """"""" #??? | | ?????????????# = """"""" """"""" #??? | | ?????????????# u #??? | | ?????????????# """ """ """"""" """"""" #??? | | ?????????????# """ """ *R""""""" """"""" #??? | | ?????????????# """ """ """""""u""""""" #### | | ?????????????# # """"""" """"""" # | | ?????????????# # | | ?????????????# ^ """"""" # "" | | ?????????????# " "" """ """"""" #|"" | | ?????????????# "R"" "Y """"""" /! | | ?????????????# """ """ """"""" *#^ | | ?????????????########### c * % #^"" | | ???????????????????????# @ #^"" | | ???????????????????????# ############ | | ???????????????????????## #????????#+## | | ????????????????????????# #???????# | | ????????????????????????# * [ #???????# | | ????????????????????????# ![""" """ #??####?# | | ????????????????????????# = """ """ ##?## ## | | ????????????????????????# """ """ #?## # | | ????????????????????????# #?#!! # | | ????????????????????????# #?# # | | ????????????????????????# ### # | | ????????????????????????# # # + | | ????????????????????????# ""T"" # # # | | ????????????????????????# """"" # # # | | ????????????????????????#######################+## | | ????????????????????????????????????# # | | ????????????????????????????????????# # | | ????????????????????????????????????# """ + | | ????????????????????????????????????# """"" # | | ????????????????????????????????????# """"" = # | | ?????##?????????????????????????????############## | | #####"#??????????????????????????????????????????# | | #???????????????????????????????????????????# | | """ #???????????????????????????????????????????# | | """ #???????????????????????????????????????????# | +----------------------------------------------------+ Best States ------------- Heat Dissipation 59 Energy Generation 23 Energy Capacity 295 Matter Stores 300 Matter Capacity 300 Sight Range 16 Robot Scan Range 16 Terrain Scan Density 10 Additional Mass Support 12 Armor Coverage 225 Melee Speed Boost 20 Evasion (%) 67 Recoil Reduction 4 Offensive Hacking 22 Defensive Hacking 20 Authchip Count 3 Trap Extractor Capacity 6 Item Schematics ----------------- Cld. VTOL Module | -7/Factory | Hacked Imp. Trap Extractor | -7/Factory | Scanalyzed System Restoration Module | -7/Factory | Hacked Hvy. Ion Cannon | -7/Zion | Archive Imp. Hardlight Generator | -7/Zion | Archive Adv. Assault Cannon | -7/Zion | Archive EM Shield | -7/Zion | Archive Proton Missile Launcher | -7/Zion | Archive Force Field | -7/Zion | Archive Recalibrator | -7/Zion | Archive Imp. Transmission Jammer | -7/Zion | Archive Point Defense System | -7/Zion | Archive Hvy. Laser | -7/Zion | Archive Adv. Sensor Array | -7/Zion | Archive Arm. Leg | -7/Zion | Archive Imp. Melee Analysis Suite | -7/Zion | Archive Imp. Medium Armor Plating | -7/Zion | Archive Angular Momentum Engine | -7/Zion | Archive Battle Cannon | -7/Zion | Free Barrage Gun | -7/Zion | Free Robot Schematics ------------------ A-02 Transporter | -7/Zion | Archive Y-54 Guardian | -7/Zion | Archive O-24 Administrator | -7/Zion | Archive X-82 Rainmaker | -7/Zion | Archive Fabricated ------------ O-24 Administrator | x1 | -7/Factory | Preloaded Cld. VTOL Module | x1 | -7/Factory | Authchip Cld. VTOL Module | x1 | -7/Factory | Authchip Cld. VTOL Module | x1 | -7/Factory | Authchip Cld. VTOL Module | x1 | -7/Factory | Authchip Cld. VTOL Module | x1 | -6/Factory | Authchip Repaired ---------- Lgt. Deuterium Engine | 6% | -7/Factory Lgt. Deuterium Engine | 2% | -6/Factory Cld. VTOL Module | 6% | -6/Factory Cld. VTOL Module | 26% | -6/Factory Cld. Plasma Cannon | 60% | -6/Factory Cld. VTOL Module | 68% | -6/Factory Cld. VTOL Module | 70% | -6/Factory Adv. Sensor Array | 4% | -6/Factory Fusion Reactor | 24% | -6/Factory Studied --------- Lgt. Deuterium Engine | -8/Materials | Hacked Spread Laser | -8/Materials | Hacked Alien Tech Used ----------------- None Achievements -------------- None Challenges ------------ None Game ------ Seed OvertunedSmartbombImpeller Manual? 0 Play Time 02:42:29 Cumulative 437.4 hours Start 2026.02.23 @ 18:44:01 End 2026.02.23 @ 22:51:39 Sessions 1 Manual Loads 0 Difficulty Rogue Special Mode None Game No. 283 Rogue 283 Adventurer 0 Explorer 0 Win Type - Total 29 Types 10/0/9/1/1/0/3/2/2/1 Lore% 84 Gallery% 78 Achievement% 72 Wizard Run 0 Options --------- Layout 1 ASCII 0 Keyboard 0 Movement Mouse Keybinds 0 Fullscreen 2 Font 24/Smallcaps Map View 50x35 Zoom Use 0% Tactical HUD 1 Map Filters NONE Filters NONE Steam 1 RUN: 4956634c-3936-4609-b973-ad213b6a60ed